[Event "XIII Marques de Pombal 2022"]
[Site "Pombal"]
[Date "2022.10.05"]
[Round "2.5"]
[White "Veleirinho, Tomas Carvalho"]
[Black "Gori, Andrea"]
[Result "1-0"]
[ECO "C50"]
[WhiteElo "1692"]
[BlackElo "1982"]
[Annotator "TA"]
[PlyCount "147"]
[EventDate "2022.09.28"]
[EventType "swiss"]
[EventCountry "POR"]
[SourceTitle "playchess.com"]
[Source "ChessBase"]
[SourceQuality "1"]
[TimeControl "5400+30"]

{[%evp 16,147,23,23,29,29,63,62,47,56,76,41,39,48,35,28,33,26,67,0,3,0,6,2,12,0,18,0,0,0,38,-15,-8,-14,4,-24,0,0,21,-14,63,-4,-9,-183,150,147,136,25,710,714,1001,926,879,853,1650,918,916,916,893,856,835,799,852,0,955,960,895,1137,1112,1110,1050,690,29983,942,903,800,831,798,830,723,858,866,835,809,869,789,903,810,1084,1094,1073,1062,1059,1043,1043,1038,1010,861,5616,5616,5165,5291,5073,2967,1728,1451,4627,1557,29976,29976,29978,29978,29981,29982,29981,29982,29985,29986,29986,29982,29982,29983,29983,29982,29984,29984,29986,29987,29988,29987,29990,29987,29987,29987]} 1. e4 e5 2. Nf3 Nc6 3. Bc4 Bc5 4. O-O Nf6 5. d3 O-O 6. h3 a6 7. Bb3 d6 8. c3 Ba7 9. Nbd2 {[%cal Bb1d2,Bd2f1,Bf1g3][%mdl 32]} Qe7 {C54: Giuoco Piano: 4 c3 Nf6, main lines with 5 d4 and 5 d3.} 10. Re1 Na5 11. Bc2 c5 {White is slightly better.} 12. Nf1 Nc6 13. Ng3 {[#]} (13. Bg5 $5 {[%cal Rf1e3]}) 13... Ne8 $146 ({Predecessor:} 13... h6 14. Nh4 Kh7 15. Nhf5 Bxf5 16. Nxf5 Qd7 17. Qf3 Ng8 18. Qg4 g6 19. Nxh6 Qxg4 20. Nxg4 {1-0 (62) Ozsakallioglu,A (1865)-Koksal,R (1763) Antalya 2018}) 14. Bg5 Qc7 15. Nh4 Be6 16. Nhf5 b5 17. Qg4 {White is more active.} (17. Bb3 $14) 17... Kh8 $11 {Threatens to win with ...f6.} 18. Qh4 {[%cal Of5g7] Nxg7! is the strong threat.} f6 19. Be3 Rb8 20. Rad1 Rb7 21. Bb1 Qf7 22. a3 Ba2 (22... g6 $5 23. Nh6 $8 Qe7 $11) 23. f4 (23. Bxa2 $14 Qxa2 24. Bc1) 23... Bxb1 24. Rxb1 d5 25. fxe5 Nxe5 26. d4 Nd3 27. Rf1 c4 ({Black should play} 27... g6 $11 28. Nh6 Qe7) 28. e5 (28. b3 $1 $14) 28... Qe6 $1 {next ...Rbf7 is good for Black.} (28... fxe5 $2 29. Nh6 $1 gxh6 30. Rxf7 Rbxf7 31. Rf1 $18 (31. Bxh6 exd4 32. cxd4 Ng7 $16)) 29. Rf3 $2 (29. Qg4 $1 $11 {and White stays safe.}) 29... Rbf7 $2 (29... fxe5 $19 {Hoping for ...Rbf7.} 30. Rff1 (30. Nxg7 $2 Kxg7 31. Qg5+ Qg6 $19) 30... Rbf7 31. dxe5 Bxe3+ 32. Nxe3 Qxe5) 30. exf6 $16 Rxf6 {[#] aiming for ...Bb8.} 31. Rbf1 (31. Bg5 $1 $16 Ne5 32. Rff1 (32. Bxf6 Nxf3+ 33. gxf3 Nxf6 $17)) 31... Bb6 $2 {[%mdl 8192] [#]} (31... R6f7 $11) 32. Nxg7 $1 $18 {[%mdl 512]} Nxg7 (32... Qg8 33. Rxf6) 33. Rxf6 Qxe3+ 34. Kh2 {[%cal Rf6f8]} Rg8 35. Rh6 Qxh6 36. Qxh6 Bc7 37. Rf3 Ne1 38. Re3 Nd3 39. Rf3 $2 (39. Qf6 $18) 39... a5 $2 {[%mdl 8192]} (39... Ne1 $11) 40. Kg1 Ne1 41. Re3 Nd3 42. Nh5 Nxh5 43. Qxh5 Nf4 44. Qf3 (44. Qf5 $142 Nh5 45. Qxh5 Bd6 46. Qf7 Rf8 47. Qxd5 Rd8 48. Qg5 Rc8 49. Qf6+ Kg8 50. Qxd6) 44... Rxg2+ 45. Qxg2 Nxg2 46. Kxg2 {[%mdl 4096] Endgame Black must now prevent Re8+. KR-KB} Bf4 47. Re2 Kg7 48. Kf3 Bc1 49. Rc2 Bh6 50. Kg4 Kg6 51. h4 {[%cal Bh3h4,Bh4h5][%mdl 32]} Be3 52. h5+ Kf6 53. Re2 Bc1 54. Rf2+ Ke6 55. Rc2 Bh6 56. Re2+ Kf6 57. Re5 Bc1 58. Rxd5 Bxb2 59. Rxb5 Bxc3 60. Rc5 Bxd4 61. Rxc4 Bb2 62. Rc6+ {White mates.} Kg7 63. a4 Ba3 64. h6+ Kf7 65. Kf5 Bf8 66. Rc7+ Kg8 67. Ra7 Bxh6 68. Rxa5 Be3 69. Re5 Bd4 70. Rd5 Be3 71. a5 {[%cal Ba4a5,Ba5a6][%mdl 32]} Kf8 72. a6 h5 73. Rd7 Ke8 74. Rh7 {Weighted Error Value: White=0.50/Black=0.38} 1-0

[Event "XIII Marques de Pombal 2022"]
[Site "Pombal"]
[Date "2022.10.05"]
[Round "2.6"]
[White "Peixoto, Helio Ricardo Soutin"]
[Black "Calzada Cruz, Osvaldo"]
[Result "1-0"]
[ECO "B50"]
[WhiteElo "1969"]
[BlackElo "1632"]
[Annotator "TA"]
[PlyCount "63"]
[EventDate "2022.09.28"]
[EventType "swiss"]
[EventCountry "POR"]
[SourceTitle "playchess.com"]
[Source "ChessBase"]
[SourceQuality "1"]
[TimeControl "5400+30"]

{[%evp 15,63,0,0,0,16,0,31,18,20,22,42,32,34,15,109,106,95,60,114,86,83,82,217,226,235,219,317,260,253,203,214,173,350,341,605,544,812,812,707,568,579,543,754,733,875,628,1011,1006,962,964]} 1. e4 {[%emt 0:00:02]} c5 {[%emt 0:00:09]} 2. Nf3 {[%emt 0:00:20]} d6 {[%emt 0:00:13]} 3. d3 {[%emt 0:00:36]} Nf6 {[%emt 0:00:52]} 4. g3 {[%emt 0:00:21]} g6 {[%emt 0:00:14]} 5. Bg2 {[%emt 0:00:23]} Bg7 {[%emt 0:00:44]} 6. O-O {[%emt 0:00:34]} O-O {[%emt 0:00:31]} 7. Nbd2 {[%emt 0:01:08]} Nc6 {[%emt 0:01:12]} 8. a4 {[%emt 0:03:01]} Bg4 {[%emt 0:02:29]} 9. h3 {[%emt 0:00:13] A05: Réti Opening: 1 Nf3 Nf6.} Bd7 {[%emt 0:01:02]} 10. Re1 {[%emt 0:04:16] [#]} Nh5 $146 {[%emt 0:01:45]} ({Predecessor:} 10... Qc8 11. Kh2 Qc7 12. Nc4 a6 13. Bf4 b5 14. axb5 axb5 15. Rxa8 Rxa8 16. Ne3 e5 {1-0 (52) Ralis,P (2183)-Bouska,J (1804) Chess.com INT 2021}) 11. c3 {[%emt 0:02:27] White is slightly better.} Qc8 {[%emt 0:02:14]} 12. Kh2 {[%emt 0:00:24]} Ne5 {[%emt 0:04:50]} 13. Nxe5 {[%emt 0:05:30]} dxe5 {[%emt 0:04:16]} 14. Nc4 {[%emt 0:02:03]} b5 {[%emt 0:01:21]} (14... Qc7 $11 {remains equal.}) 15. axb5 $16 {[%emt 0:03:34]} Bxb5 {[%emt 0:00:47]} 16. Ne3 {[%emt 0:00:17] White is more active.} Qd7 {[%emt 0:05:03]} (16... a5 $14) 17. c4 {[%emt 0:13:14]} Bc6 {[%emt 0:00:49]} 18. Ra5 {[%emt 0:02:46]} f5 {[%emt 0:01:38] [#] Black cannot hold the game after this.} (18... e6 $16) 19. exf5 $1 $18 {[%emt 0:00:45]} (19. Rxc5 $6 f4 $16) 19... Bxg2 {[%emt 0:00:55]} 20. Kxg2 {[%emt 0:00:57]} e6 {[%emt 0:08:41]} (20... Qc7 $142) 21. fxe6 {[%emt 0:04:13]} (21. Rxc5 Qb7+ 22. Kg1 gxf5 $16) 21... Qxe6 {[%emt 0:00:35]} 22. Ng4 {[%emt 0:08:57]} Qc6+ {[%emt 0:02:02]} 23. Kg1 {[%emt 0:01:16] Be3 is the strong threat.} e4 $2 {[%emt 0:09:24]} (23... Qc7 {was necessary.} 24. Ra6 Qc8) 24. Rxe4 {[%emt 0:02:13]} ({Don't take} 24. dxe4 Rfd8 25. Qf3 a6 26. Nh6+ Bxh6) 24... Nxg3 $2 {[%emt 0:01:33]} (24... Bd4) 25. fxg3 {[%emt 0:04:08] White is clearly winning.} Qc7 {[%emt 0:01:54]} 26. Qe1 {[%emt 0:00:17]} h5 {[%emt 0:07:07]} 27. Ne5 {[%emt 0:10:44]} Rae8 {[%emt 0:04:11][%cal Re8e5]} 28. d4 {[%emt 0:03:02]} ({Not} 28. Nxg6 Rxe4 29. dxe4 Bd4+ 30. Kh1 Qxa5 $16) 28... Bxe5 {[%emt 0:05:49]} 29. Rxe5 {[%emt 0:03:42]} Qd7 {[%emt 0:06:21]} 30. Qe4 {[%emt 0:10:57]} Qf7 {[%emt 0:03:26] [#] ( -> ...Qf1+)} 31. Bf4 {[%emt 0:00:35]} Rxe5 {[%emt 0:04:17]} 32. Qxe5 {[%emt 0:01:28] Weighted Error Value: White=0.37/Black=0.75} 1-0

[Event "XIII Marques de Pombal 2022"]
[Site "Pombal"]
[Date "2022.10.05"]
[Round "2.7"]
[White "Mendes, Alberto Achiles Gasp"]
[Black "Almeida, Joao Pedro Dias"]
[Result "1/2-1/2"]
[ECO "C34"]
[WhiteElo "1618"]
[BlackElo "1901"]
[Annotator "TA"]
[PlyCount "135"]
[EventDate "2022.09.28"]
[EventType "swiss"]
[EventCountry "POR"]
[SourceTitle "playchess.com"]
[Source "ChessBase"]
[SourceQuality "1"]
[TimeControl "5400+30"]

{[%evp 9,135,-90,-88,-78,-62,-120,-95,-129,-72,-152,-108,-122,-107,-97,-45,-70,-30,-46,0,-129,-82,-152,-143,-136,-128,-154,-107,-107,-81,-90,-58,-54,14,22,14,21,0,12,1,16,77,92,92,0,0,-47,0,-137,-128,-283,-322,-361,-359,-353,-330,-383,-244,-244,-241,-246,-235,-229,-233,-272,-252,-270,-261,-335,-312,-264,-99,-98,-66,-170,-147,-189,-165,-126,0,0,-6,0,10,10,103,44,74,77,150,31,24,8,117,108,115,115,154,150,154,38,54,35,76,77,84,69,124,108,918,902,1014,1048,29984,1329,1641,1579,1491,1189,1097,1187,1295,1235,29980,29981,29982,29982,29979,5089]} 1. e4 {[%emt 0:00:05]} e5 {[%emt 0:00:14]} 2. f4 {[%emt 0:00:23]} exf4 {[%emt 0:00:29]} 3. Nf3 {[%emt 0:00:10]} h6 {[%emt 0:09:12]} 4. Bc4 {[%emt 0:00:40]} d6 {[%emt 0:01:16]} 5. c3 {[%emt 0:15:44]} g5 {[%emt 0:07:24]} 6. d4 {[%emt 0:00:45] C34: King's Gambit Accepted: 3 Nf3: 3...Nf6 and 3...d6.} Bg7 {[%emt 0:03:29] [#]} 7. b4 $146 {[%emt 0:02:25]} (7. O-O $15) ({Predecessor:} 7. Qb3 Qe7 8. O-O Nd7 9. Na3 Nb6 10. Bd2 Bd7 11. Kh1 O-O-O 12. Rae1 h5 13. d5 h4 {0-1 (31) Khaetsky,R (2385)-Jakubowski,K (2557) Pardubice 2016}) 7... Bg4 {[%emt 0:01:55]} 8. Qd3 {[%emt 0:04:01] Black is better.} Ne7 {[%emt 0:02:09]} (8... Nf6 $142 9. Nbd2 O-O) 9. Bb2 {[%emt 0:14:52]} (9. h4 $142) 9... Nd7 {[%emt 0:04:38][%cal Od6d5]} 10. Nbd2 {[%emt 0:00:55]} Nb6 {[%emt 0:00:49]} 11. Bb3 {[%emt 0:00:25]} d5 {[%emt 0:04:00]} ({Black should play} 11... Bd7 $17) 12. O-O {[%emt 0:17:33]} dxe4 {[%emt 0:05:17]} 13. Nxe4 {[%emt 0:00:18]} Nbd5 {[%emt 0:03:05]} (13... Bf5 $1 $15) 14. Bxd5 {[%emt 0:02:56]} (14. Rae1 $11) 14... Nxd5 {[%emt 0:00:35]} (14... Qxd5 $142 15. Rae1 Bxf3 16. Qxf3 O-O-O) 15. Nc5 {[%emt 0:03:48]} (15. Qb5+ $142 Kf8 16. Qxb7) 15... O-O {[%emt 0:01:17] Threatens to win with ...b6.} 16. Nxb7 {[%emt 0:02:23]} Qc8 {[%emt 0:00:46]} 17. Nc5 {[%emt 0:00:22]} Ne3 {[%emt 0:00:21]} (17... a5 $142 18. b5 Ne3) 18. Rf2 $17 {[%emt 0:01:24]} Bf5 {[%emt 0:01:22]} 19. Qa6 {[%emt 0:02:05]} Qd8 {[%emt 0:01:22]} 20. Re1 {[%emt 0:02:03]} g4 {[%emt 0:01:10]} (20... Qd6 $15) 21. Ne5 $11 {[%emt 0:07:37]} Qh4 {[%emt 0:02:01] [#] Strongly threatening ...Bxe5.} 22. Rxe3 {[%emt 0:00:21] Active counter play!} Bc8 $40 {[%emt 0:00:58][%mdl 128] Black has some attack. This bishop pair is nice.} 23. Qe2 {[%emt 0:02:54]} fxe3 {[%emt 0:00:24]} 24. Qxe3 {[%emt 0:00:22]} Bxe5 {[%emt 0:00:25]} (24... Qg5 $11 25. Qe2 Bf5) 25. Qxe5 $16 {[%emt 0:01:35] And now Ne4 would win. Dancing on a razor blade.} Qg5 {[%emt 0:00:42]} 26. Qxg5+ {[%emt 0:04:47]} (26. Qe1 $16 {Black must now prevent Ne4.} a5 27. Ne4) 26... hxg5 $11 {[%emt 0:00:16]} 27. Re2 {[%emt 0:01:41] Inhibits Re8.} (27. c4 $11) 27... Be6 {[%emt 0:01:01]} (27... f6 $15) 28. Bc1 {[%emt 0:02:14]} (28. Re5 $11 {remains equal.}) 28... Bc4 $1 $17 {[%emt 0:01:04]} 29. Rf2 {[%emt 0:01:26]} (29. Re7 $17 {was called for.}) 29... Rae8 $19 {[%emt 0:01:25] ( -> ...Re1+)} 30. Rc2 {[%emt 0:01:11]} f6 {[%emt 0:00:37]} 31. Kf2 {[%emt 0:00:17]} Rf7 {[%emt 0:00:23] aiming for ...Rfe7.} 32. Kg3 {[%emt 0:01:10]} Re2 {[%emt 0:00:49]} 33. Rxe2 {[%emt 0:00:54]} Bxe2 {[%emt 0:00:03][%mdl 4096] Endgame KRB-KBN} 34. Kf2 {[%emt 0:01:34]} Re7 {[%emt 0:00:05]} 35. Be3 {[%emt 0:00:38]} Bc4 {[%emt 0:00:15]} 36. a3 {[%emt 0:00:59]} Kg7 {[%emt 0:00:10]} 37. g3 {[%emt 0:00:58]} Kf7 {[%emt 0:00:39]} 38. Na4 {[%emt 0:01:14]} Ke6 {[%emt 0:00:41]} 39. Nb2 {[%emt 0:00:02]} Ba6 {[%emt 0:00:36]} (39... Kd5 $19 {is more deadly. ...Ba6 is the strong threat.} 40. a4 Rh7) 40. c4 $17 {[%emt 0:00:12]} Kf5 {[%emt 0:00:13]} 41. b5 {[%emt 0:00:07]} ({Better is} 41. Ke2 $15) 41... Bb7 {[%emt 0:01:20]} 42. d5 {[%emt 0:00:40]} a6 {[%emt 0:00:21]} 43. a4 {[%emt 0:00:08]} Re4 {[%emt 0:01:44]} ({Black should try} 43... Rh7 $17 44. Ke2 Rxh2+ 45. Bf2 Ke4) 44. Ke2 $11 {[%emt 0:00:11]} axb5 {[%emt 0:00:38]} 45. axb5 {[%emt 0:00:16]} Re8 {[%emt 0:01:20]} 46. Kd3 {[%emt 0:00:11]} Ra8 {[%emt 0:00:25]} (46... Rh8 $11 {keeps the balance.}) 47. Kd4 {[%emt 0:02:25]} (47. Nd1 $1 $16) 47... Ra2 {[%emt 0:00:52]} 48. Bc1 {[%emt 0:00:27][%mdl 1024] White has strong compensation.} Ra1 {[%emt 0:00:25]} (48... Kg6 $142) 49. Nd3 {[%emt 0:00:07]} ({White must play} 49. Bd2 $1 $16) 49... Kg6 $1 $14 {[%emt 0:01:24]} 50. Kc3 {[%emt 0:01:27]} Ra8 {[%emt 0:01:26]} (50... Kf7 $1 $11) 51. Nc5 $16 {[%emt 0:00:25]} Bc8 {[%emt 0:00:16]} 52. Bb2 {[%emt 0:02:29]} f5 {[%emt 0:00:16] [#]} 53. Nd3 {[%emt 0:01:32] Prevents f4.} Bb7 {[%emt 0:00:35][%cal Of5f4]} 54. Ne5+ {[%emt 0:00:07]} (54. Kb3 $16) 54... Kh5 $14 {[%emt 0:00:22]} 55. Bc1 {[%emt 0:00:30] Against f4} Re8 {[%emt 0:00:31]} 56. Kd4 {[%emt 0:00:02]} Ra8 {[%emt 0:00:16]} 57. Nf7 {[%emt 0:00:17]} Ra1 {[%emt 0:00:37] [#]} (57... f4 $1 $14) 58. Be3 $1 $16 {[%emt 0:00:12]} Ra2 $2 {[%emt 0:01:31][%mdl 8192]} (58... Rd1+ $16 59. Kc3 f4 60. gxf4 gxf4 61. Bxf4 Rf1 62. Bxc7 (62. Nd8 Bxd5 63. Bxc7 Rc1+ 64. Kd4 Rxc4+ 65. Kxd5 Rxc7 $11) 62... Rxf7) 59. Nxg5 $18 {[%emt 0:00:17]} ({Not} 59. d6 cxd6 60. Nxd6 Bf3 $16) 59... Rxh2 {[%emt 0:00:32]} 60. Ne6 {[%emt 0:00:10]} Rg2 61. Bf4 (61. Nf4+ $142 Kg5 62. Nxg2+ Kh5 63. Bf4 Kg6 64. Bxc7 Kg7 65. c5 f4 66. Nxf4) 61... Rg1 {[%emt 0:01:17]} 62. Nxc7 {[%emt 0:00:17]} Kg6 {[%emt 0:00:39]} 63. Ne6 {[%emt 0:00:48]} Kf6 {[%emt 0:00:21]} 64. Kc5 {[%emt 0:00:32]} Bc8 {[%emt 0:00:22]} 65. Kd6 {[%emt 0:00:12]} Bxe6 {[%emt 0:00:17]} 66. Be5+ {[%emt 0:00:25][%mdl 64] Zwischenzug. White mates.} Kf7 {[%emt 0:00:31]} 67. dxe6+ {[%emt 0:00:03]} Ke8 {[%emt 0:00:06]} 68. c5 {[%emt 0:01:39][%mdl 32768] What a fight!  Weighted Error Value: White=0.33/Black=0.42. An unexpected result.} (68. b6 $142 Rb1 69. Kc6 Kf8 70. Kd7 Rd1+ 71. Bd6+ Kg8 72. b7 Rb1 73. b8=Q+ Rxb8 74. Bxb8) 1/2-1/2

[Event "XIII Marques de Pombal 2022"]
[Site "Pombal"]
[Date "2022.10.05"]
[Round "2.8"]
[White "Farias, David Nuno Moita Est"]
[Black "Fernandes, Martim Bernardo Ramo"]
[Result "1-0"]
[ECO "B47"]
[WhiteElo "1863"]
[BlackElo "1604"]
[Annotator "NA RC COMBH"]
[PlyCount "43"]
[EventDate "2022.09.28"]
[EventType "swiss"]
[EventCountry "POR"]
[SourceTitle "playchess.com"]
[Source "ChessBase"]
[SourceQuality "1"]
[TimeControl "5400+30"]

1. e4 {[%emt 0:00:02]} c5 {[%emt 0:00:02]} 2. Nf3 {[%emt 0:00:05]} e6 {[%emt 0:00:03]} 3. d4 {[%emt 0:00:04]} cxd4 {[%emt 0:00:03]} 4. Nxd4 {[%emt 0:00:04]} Nc6 {[%emt 0:00:05]} 5. Nc3 {[%emt 0:00:08]} Qc7 {[%emt 0:00:04]} 6. g3 {[%emt 0:00:44]} Nf6 {[%emt 0:00:17]} 7. Bg2 {[%emt 0:04:50]} Nxd4 {[%emt 0:05:45]} 8. Qxd4 {[%emt 0:00:13]} Bc5 {[%emt 0:00:36]} 9. Qd3 {[%emt 0:04:31]} O-O {[%emt 0:05:49]} 10. O-O {[%emt 0:04:04]} d6 {[%emt 0:02:10]} 11. Kh1 {[%emt 0:16:24]} d5 {[%emt 0:23:37]} 12. exd5 {[%emt 0:06:15]} exd5 {[%emt 0:16:47]} 13. Nxd5 {[%emt 0:26:35]} Nxd5 {[%emt 0:04:02]} 14. Qxd5 {[%emt 0:03:18]} Qb6 {[%emt 0:00:45]} 15. b3 {[%emt 0:07:36]} Bxf2 {[%emt 0:23:58]} 16. Ba3 {[%emt 0:01:29]} Be6 {[%emt 0:03:35]} 17. Qxb7 {[%emt 0:02:46]} Bd4 {[%emt 0:03:03]} 18. Bxf8 {[%emt 0:04:49]} Rxf8 {[%emt 0:00:48]} 19. Qxb6 {[%emt 0:00:13]} Bxb6 {[%emt 0:00:22]} 20. c4 {[%emt 0:01:23]} Bc8 {[%emt 0:00:51]} 21. Rae1 {[%emt 0:01:34]} Rd8 {[%emt 0:00:15]} 22. Bd5 {[%emt 0:00:41]} 1-0

[Event "XIII Marques de Pombal 2022"]
[Site "Pombal"]
[Date "2022.10.05"]
[Round "3.1"]
[White "Khamrakulov, Ibragim S."]
[Black "Peixoto, Helio Ricardo Soutin"]
[Result "1-0"]
[ECO "B22"]
[WhiteElo "2421"]
[BlackElo "1969"]
[Annotator "TA"]
[PlyCount "63"]
[EventDate "2022.09.28"]
[EventType "swiss"]
[EventCountry "POR"]
[SourceTitle "playchess.com"]
[Source "ChessBase"]
[SourceQuality "1"]
[TimeControl "5400+30"]

{[%evp 12,63,-8,-6,53,51,50,48,57,52,52,49,73,37,68,64,68,66,72,41,100,108,111,106,96,89,85,93,181,159,194,177,193,181,344,333,617,616,793,785,749,687,874,877,822,801,1139,1027,1016,1001,6199,4906,29988,29989]} 1. e4 {[%emt 0:00:11]} c5 {[%emt 0:00:00]} 2. c3 {[%emt 0:00:29]} d5 {[%emt 0:00:10]} 3. exd5 {[%emt 0:00:15]} Qxd5 {[%emt 0:00:10]} 4. d4 {[%emt 0:00:46]} Nc6 {[%emt 0:00:34]} 5. dxc5 {[%emt 0:00:52]} Qxd1+ {[%emt 0:16:27]} 6. Kxd1 {[%emt 0:05:38]} Nf6 {[%emt 0:00:30]} 7. Nf3 {[%emt 0:03:14]} g6 {[%emt 0:00:38] B22: Sicilian: 2 c3.} (7... e6 $11) 8. Bb5 $14 {[%emt 0:05:43]} Bd7 {[%emt 0:00:37]} 9. Nbd2 {[%emt 0:01:34]} Bg7 {[%emt 0:00:36] White is slightly better.} 10. Ke2 {[%emt 0:02:28] [#]} O-O $146 {[%emt 0:04:42]} ({Predecessor:} 10... O-O-O 11. Rd1 Rhe8 12. Kf1 Ne5 13. Be2 Nc6 14. Nb3 a5 15. a4 e5 16. Nfd2 Be6 17. Bc4 Nd5 18. Bb5 Nf4 19. Bc4 Nd5 20. Bb5 Nf4 21. Bc4 {½-½ (21) Spence,D (2198)-Turner,M (2482) Brentwood 2008}) 11. Rd1 {[%emt 0:03:10]} Rfd8 {[%emt 0:04:19]} 12. Nc4 {[%emt 0:08:51]} Ne4 {[%emt 0:01:27]} 13. Be3 $1 {[%emt 0:24:20]} Be6 {[%emt 0:17:33]} 14. Ncd2 {[%emt 0:04:24]} Nf6 {[%emt 0:06:46]} 15. Nd4 {[%emt 0:03:13]} (15. Nb3 {feels hotter.} Nd5 16. Ng5 Bf5 17. Rxd5 Rxd5 18. Bc4) 15... Bd5 {[%emt 0:01:48] Black is now going downhill.} ({Better is} 15... Nxd4+ $14 16. Bxd4 (16. cxd4 Nd5 $11) 16... Nd5) 16. f3 $16 {[%emt 0:01:35]} e5 {[%emt 0:03:27]} 17. Nxc6 {[%emt 0:06:37]} bxc6 {[%emt 0:15:16]} 18. Ba4 {[%emt 0:02:06]} Rab8 {[%emt 0:01:07]} 19. b4 {[%emt 0:01:45]} Rbc8 {[%emt 0:02:29]} (19... e4 $16 {was necessary.}) 20. Kf2 {[%emt 0:02:39]} Be6 {[%emt 0:02:38]} 21. Ne4 {[%emt 0:02:11]} Nd5 {[%emt 0:02:40]} 22. Bxc6 {[%emt 0:03:20]} Rxc6 $2 {[%emt 0:03:09] [#]} (22... Nxe3 23. Rxd8+ Rxd8) 23. c4 $18 {[%emt 0:00:19]} Ra6 $2 {[%emt 0:05:31]} (23... Rcc8) 24. cxd5 {[%emt 0:01:14]} Rxd5 {[%emt 0:01:08]} 25. Rxd5 {[%emt 0:00:51]} Bxd5 {[%emt 0:00:20]} 26. Rd1 {[%emt 0:00:10]} Rxa2+ {[%emt 0:00:14]} 27. Kg3 {[%emt 0:00:45]} f5 {[%emt 0:00:53]} 28. Rxd5 {[%emt 0:00:29][%cal Oc5c6] c6! is the strong threat.} f4+ {[%emt 0:03:36] [#]} 29. Bxf4 $1 {[%emt 0:00:22]} exf4+ {[%emt 0:00:06]} 30. Kxf4 {[%emt 0:00:05] And now c6 would win.} Rb2 {[%emt 0:01:00]} 31. c6 {[%emt 0:00:30][%cal Bc5c6,Bc6c7][%mdl 32] c7 would kill now.} Rxb4 {[%emt 0:03:22]} 32. c7 {[%emt 0:00:28] Weighted Error Value: White=0.08 (flawless) /Black=0.86} 1-0